fUST/lending_fUST_20250817
["ID","MTS","AMOUNT","RATE_DAILY","PERIOD"]
[379694097,1755373850015,-480.0,0.00020537,2]
[379694099,1755373850024,-936.92,0.00020537,2]
[379694101,1755373850034,-480.0,0.00020537,2]
[379694103,1755373850043,-480.0,0.00020537,2]
[379694105,1755373850053,-480.0,0.00020537,2]
[379694107,1755373850063,-460.0,0.00020537,2]
[379694109,1755373850073,-779.51,0.00020537,2]
[379694111,1755373850083,-816.53,0.00020537,2]
[379694113,1755373850092,-606.69,0.00020537,2]
[379694115,1755373850106,-480.0,0.00020537,2]
[379694117,1755373850116,-241.17545315,0.00020537,2]
[379694119,1755373850128,-480.0,0.00020537,2]
[379694121,1755373850140,-480.0,0.00020537,2]
[379694123,1755373850158,-480.0,0.00020537,2]
[379694125,1755373850177,-480.0,0.00020537,2]
[379694127,1755373850196,-1959.8,0.00020537,2]
[379694129,1755373850208,-480.0,0.00020537,2]
[379694131,1755373850217,-462.97736851,0.00020537,2]
[379694133,1755373850227,-480.0,0.00020537,2]
[379694135,1755373850236,-2282.09,0.00020537,2]
[379694137,1755373850248,-420.0,0.00020537,2]
[379694139,1755373850257,-380.0,0.00020537,2]
[379694141,1755373850266,-480.0,0.00020537,2]
[379694143,1755373850275,-151.0,0.00020537,2]
[379694145,1755373850285,-480.0,0.00020537,2]
[379694147,1755373850294,-151.0,0.00020537,2]
[379694149,1755373850304,-480.0,0.00020537,2]
[379694151,1755373850313,-480.0,0.00020537,2]
[379694153,1755373850323,-480.0,0.00020537,2]
[379694155,1755373850333,-480.0,0.00020537,2]
[379694157,1755373850342,-557.46,0.00020537,2]
[379694159,1755373850352,-480.0,0.00020537,2]
[379694161,1755373850361,-631.08,0.00020537,2]
[379694163,1755373850371,-9928.7,0.00020537,2]
[379694165,1755373850380,-9515.0,0.00020537,2]
[379694167,1755373850390,-151.0,0.00020537,2]
[379694168,1755373850399,-383.49560871,0.00020537,2]
[379694169,1755373850409,-739.93,0.00020537,2]
[379694170,1755373850418,-480.0,0.00020538,2]
[379694171,1755373850428,-758.38,0.00020538,2]
[379694172,1755373850437,-480.0,0.00020538,2]
[379694173,1755373850446,-480.0,0.00020538,2]
[379694174,1755373850456,-480.0,0.00020538,2]
[379694175,1755373850465,-480.0,0.00020538,2]
[379694176,1755373850475,-288.07755717,0.00020538,2]
[379694177,1755373850484,-480.0,0.00020538,2]
[379694178,1755373850493,-480.0,0.00020538,2]
[379694179,1755373850502,-480.0,0.00020538,2]
[379694180,1755373850512,-480.0,0.00020538,2]
[379694182,1755373850521,-480.0,0.00020538,2]
[379694184,1755373850532,-480.0,0.00020538,2]
[379694186,1755373850541,-480.0,0.00020538,2]
[379694188,1755373850550,-1151.56,0.00020538,2]
[379694190,1755373850559,-480.0,0.00020538,2]
[379694192,1755373850568,-480.0,0.00020538,2]
[379694194,1755373850578,-480.0,0.00020538,2]
[379694197,1755373850587,-480.0,0.00020538,2]
[379694199,1755373850597,-480.0,0.00020538,2]
[379694201,1755373850606,-480.0,0.00020538,2]
[379694203,1755373850616,-480.0,0.00020538,2]
[379694205,1755373850627,-480.0,0.00020538,2]
[379694207,1755373850636,-480.0,0.00020538,2]
[379694209,1755373850645,-460.0,0.00020538,2]
[379694211,1755373850655,-495.75630295,0.00020538,2]
[379694213,1755373850664,-480.0,0.00020538,2]
[379694215,1755373850673,-460.0,0.00020538,2]
[379694217,1755373850682,-378.22132561,0.00020538,2]
[379694219,1755373850692,-480.0,0.00020538,2]
[379694221,1755373850702,-480.0,0.00020538,2]
[379694223,1755373850711,-480.0,0.00020538,2]
[379694225,1755373850720,-480.0,0.00020538,2]
[379694227,1755373850729,-480.0,0.00020538,2]
[379694229,1755373850739,-480.0,0.00020538,2]
[379694231,1755373850748,-834.38,0.00020538,2]
[379694233,1755373850758,-480.0,0.00020538,2]
[379694235,1755373850768,-480.0,0.00020538,2]
[379694251,1755373850914,-480.0,0.00020538,2]
[379694254,1755373850924,-480.0,0.00020538,2]
[379694256,1755373850934,-480.0,0.00020538,2]
[379694258,1755373850943,-480.0,0.00020538,2]
[379694260,1755373850954,-480.0,0.00020538,2]
[379694262,1755373850964,-480.0,0.00020538,2]
[379694264,1755373850974,-480.0,0.00020538,2]
[379694266,1755373850983,-480.0,0.00020538,2]
[379694268,1755373850993,-480.0,0.00020538,2]
[379694270,1755373851003,-480.0,0.00020538,2]
[379694272,1755373851012,-480.0,0.00020538,2]
[379694274,1755373851021,-480.0,0.00020538,2]
[379694276,1755373851031,-480.0,0.00020538,2]
[379694278,1755373851042,-480.0,0.00020538,2]
[379694280,1755373851052,-480.0,0.00020538,2]
[379694282,1755373851061,-480.0,0.00020538,2]
[379694284,1755373851071,-502.39598305,0.00020538,2]
[379694286,1755373851080,-480.0,0.00020538,2]
[379694288,1755373851090,-716.14,0.00020538,2]
[379694290,1755373851099,-480.0,0.00020538,2]
[379694292,1755373851108,-500.0,0.00020538,2]
[379694294,1755373851117,-217.55345567,0.00020538,2]
[379694296,1755373851127,-480.0,0.00020538,2]
[379694298,1755373851136,-480.0,0.00020538,2]
[379694300,1755373851146,-480.0,0.00020538,2]
[379694302,1755373851155,-480.0,0.00020538,2]
[379694304,1755373851165,-480.0,0.00020538,2]
[379694306,1755373851175,-923.6,0.00020538,2]
[379694308,1755373851184,-480.0,0.00020538,2]
[379694310,1755373851195,-497.98,0.00020538,2]
[379694312,1755373851205,-480.0,0.00020538,2]
[379694314,1755373851215,-480.0,0.00020538,2]
[379694316,1755373851224,-480.0,0.00020538,2]
[379694318,1755373851234,-480.0,0.00020538,2]
[379694320,1755373851244,-480.0,0.00020538,2]
[379694322,1755373851253,-699.05,0.00020538,2]
[379694324,1755373851263,-480.0,0.00020538,2]
[379694326,1755373851272,-480.0,0.00020538,2]
[379694328,1755373851281,-480.0,0.00020538,2]
[379694330,1755373851291,-151.0,0.00020538,2]
[379694332,1755373851300,-480.0,0.00020538,2]
[379694334,1755373851310,-480.0,0.00020538,2]
[379694336,1755373851319,-480.0,0.00020538,2]
[379694338,1755373851329,-456.38556634,0.00020538,2]
[379694340,1755373851339,-480.0,0.00020538,2]
[379694342,1755373851348,-480.0,0.00020538,2]
[379694345,1755373851358,-480.0,0.00020538,2]
[379694347,1755373851368,-440.0,0.00020538,2]
[379694349,1755373851377,-977.0,0.00020538,2]
[379694351,1755373851386,-480.0,0.00020538,2]
[379694353,1755373851396,-480.0,0.00020538,2]
[379694355,1755373851405,-460.0,0.00020538,2]
[379694357,1755373851414,-507.24,0.00020538,2]
[379694359,1755373851423,-495.581492,0.00020538,2]
[379694361,1755373851436,-495.581492,0.00020538,2]
[379694363,1755373851445,-480.0,0.00020538,2]
[379694365,1755373851455,-303.91606532,0.00020538,2]
[379694367,1755373851464,-500.0,0.00020573,2]
[379694369,1755373851473,-500.0,0.00020573,2]
[379694371,1755373851482,-500.0,0.00020573,2]
[379694373,1755373851492,-500.0,0.00020573,2]
[379694375,1755373851501,-500.0,0.00020573,2]
[379694377,1755373851514,-500.0,0.00020573,2]
[379694379,1755373851523,-500.0,0.00020573,2]
[379694381,1755373851533,-250.0,0.00020573,2]
[379694383,1755373851544,-500.0,0.00020573,2]
[379694385,1755373851554,-500.0,0.00020573,2]
[379694387,1755373851564,-500.0,0.00020573,2]
[379694389,1755373851573,-500.0,0.00020573,2]
[379694391,1755373851583,-500.0,0.00020573,2]
[379694393,1755373851592,-500.0,0.00020573,2]
[379694396,1755373851603,-500.0,0.00020573,2]
[379694398,1755373851612,-500.0,0.00020573,2]
[379694400,1755373851621,-50746.54740571,0.00020579,2]
[379694402,1755373851631,-217.77127,0.00020579,2]
[379694404,1755373851640,-171.907313,0.00020579,2]
[379694406,1755373851649,-171.907313,0.00020579,2]
[379694408,1755373851658,-151.0,0.00020579,2]
[379694410,1755373851667,-153.0,0.000206,2]
[379694412,1755373851677,-153.0,0.000206,2]
[379694414,1755373851686,-153.0,0.000206,2]
[379694416,1755373851695,-259.5354977,0.000206,2]
[379694418,1755373851706,-160.7608969,0.000206,2]
[379694420,1755373851715,-153.0,0.000206,2]
[379694422,1755373851724,-153.0,0.000206,2]
[379694424,1755373851733,-160.7608968,0.000206,2]
[379694426,1755373851743,-406.8685662,0.000206,2]
[379694428,1755373851752,-168.3628248,0.0002061,2]
[379694430,1755373851761,-151.0,0.00020633,2]
[379694432,1755373851771,-480.0,0.00020633,2]
[379694434,1755373851781,-480.0,0.00020633,2]
[379694436,1755373851790,-1809.93,0.00020633,2]
[379694438,1755373851799,-1560.19,0.00020633,2]
[379694440,1755373851809,-1244.15,0.00020633,2]
[379694442,1755373851819,-406.54661616,0.00020633,2]
[379694444,1755373851829,-480.0,0.00020633,2]
[379694446,1755373851838,-237.41714633,0.00020633,2]
[379694448,1755373851848,-480.0,0.00020633,2]
[379694450,1755373851858,-538.75,0.00020633,2]
[379694452,1755373851870,-4791.78,0.00020633,2]
[379694454,1755373851879,-493.92,0.00020633,2]
[379694456,1755373851888,-151.0,0.00020635,2]
[379694458,1755373851898,-151.0,0.00020635,2]
[379694460,1755373851907,-271.928,0.00020635,2]
[379694462,1755373851917,-151.0,0.00020635,2]
[379694464,1755373851926,-151.0,0.00020635,2]
[379694466,1755373851935,-259.578712,0.00020635,2]
[379694468,1755373851944,-151.0,0.00020635,2]
[379694470,1755373851954,-151.0,0.00020635,2]
[379694472,1755373851964,-151.0,0.00020635,2]
[379694474,1755373851974,-480.0,0.00020635,2]
[379694476,1755373851984,-480.0,0.00020635,2]
[379694478,1755373851994,-480.0,0.00020635,2]
[379694480,1755373852003,-151.0,0.00020638,2]
[379694503,1755373852220,-151.0,0.00020638,2]
[379694505,1755373852230,-495.581492,0.00020638,2]
[379694507,1755373852240,-495.581492,0.00020638,2]
[379694509,1755373852249,-151.0,0.00020638,2]
[379694511,1755373852259,-151.0,0.00020639,2]
[379694513,1755373852268,-151.0,0.00020639,2]
[379694515,1755373852278,-823.760103,0.00020639,2]
[379694517,1755373852287,-823.760103,0.00020639,2]
[379694519,1755373852297,-151.0,0.00020639,2]
[379694521,1755373852306,-151.0,0.00020639,2]
[379694523,1755373852316,-480.0,0.00020639,2]
[379694525,1755373852325,-420.0,0.00020639,2]
[379694528,1755373852335,-402.87267177,0.00020639,2]
[379694530,1755373852345,-151.0,0.00020639,2]
[379694532,1755373852354,-420.0,0.00020639,2]
[379694534,1755373852364,-480.0,0.00020639,2]
[379694536,1755373852373,-480.0,0.00020639,2]
[379694538,1755373852382,-480.0,0.00020639,2]
[379694540,1755373852391,-151.0,0.00020639,2]
[379694542,1755373852400,-151.0,0.00020639,2]
[379694544,1755373852409,-480.0,0.00020639,2]
[379694546,1755373852419,-151.0,0.00020639,2]
[379694548,1755373852429,-151.0,0.00020639,2]
[379694550,1755373852438,-151.000001,0.0002064,2]
[379694552,1755373852448,-151.0,0.00020641,2]
[379694554,1755373852457,-151.0,0.00020641,2]
[379694556,1755373852466,-151.0,0.00020641,2]
[379694558,1755373852475,-151.0,0.00020641,2]
[379694560,1755373852484,-185.275378,0.00020641,2]
[379694562,1755373852494,-185.275378,0.00020641,2]
[379694564,1755373852503,-151.0,0.00020642,2]
[379694566,1755373852512,-168.0,0.00020647,2]
[379694568,1755373852521,-200.0,0.00020669,20]
[379694570,1755373852530,-200.0,0.00020669,20]
[379694572,1755373852539,-200.0,0.00020669,20]
[379694574,1755373852548,-200.0,0.00020669,20]
[379694576,1755373852558,-200.0,0.00020669,20]
[379694578,1755373852567,-200.0,0.00020669,20]
[379694580,1755373852576,-200.0,0.00020669,20]
[379694582,1755373852586,-200.0,0.00020669,20]
[379694584,1755373852595,-200.0,0.00020669,20]
[379694586,1755373852604,-200.0,0.00020669,20]
[379694588,1755373852613,-301.65788035,0.0002069,2]
[379694590,1755373852623,-788.45,0.00020708,2]
[379694592,1755373852633,-480.0,0.00020708,2]
[379694594,1755373852642,-480.0,0.00020709,2]
[379694596,1755373852652,-480.0,0.00020709,2]
[379694598,1755373852661,-776.55,0.00020709,2]
[379694600,1755373852670,-480.0,0.00020709,2]
[379694602,1755373852679,-480.0,0.00020709,2]
[379694604,1755373852688,-480.0,0.00020709,2]
[379694606,1755373852697,-480.0,0.00020709,2]
[379694608,1755373852706,-855.98,0.00020709,2]
[379694610,1755373852716,-480.0,0.00020709,2]
[379694612,1755373852725,-480.0,0.00020709,2]
[379694614,1755373852735,-442.18938033,0.00020709,2]
[379694616,1755373852745,-480.0,0.00020709,2]
[379694618,1755373852754,-400.0,0.00020709,2]
[379694620,1755373852764,-1094.39,0.00020709,2]
[379694622,1755373852773,-7270.61,0.00020709,2]
[379694624,1755373852783,-984.49,0.00020709,2]
[379694626,1755373852792,-480.0,0.00020709,2]
[379694628,1755373852802,-327.9059211,0.00020709,2]
[379694630,1755373852812,-480.0,0.00020709,2]
[379694632,1755373852821,-480.0,0.00020709,2]
[379694634,1755373852831,-1673.94,0.00020709,2]
[379694636,1755373852840,-1070.68,0.00020709,2]
[379694638,1755373852849,-480.0,0.00020709,2]
[379694644,1755373852895,-480.0,0.00020709,2]
[379694646,1755373852904,-523.11,0.00020709,2]
[379694648,1755373852913,-480.0,0.00020709,2]
[379694650,1755373852922,-480.0,0.00020709,2]
[379694652,1755373852931,-547.12,0.00020709,2]
[379694654,1755373852940,-3031.49,0.00020709,2]
[379694656,1755373852949,-528.14,0.00020709,2]
[379694658,1755373852959,-480.0,0.00020709,2]
[379694660,1755373852968,-1095.62,0.00020709,2]
[379694662,1755373852977,-4245.3,0.00020709,2]
[379694664,1755373852986,-586.01,0.00020709,2]
[379694666,1755373852995,-522.63,0.00020709,2]
[379694668,1755373853004,-480.0,0.00020709,2]
[379694670,1755373853013,-5257.64,0.00020709,2]
[379694672,1755373853023,-1343.74,0.00020709,2]
[379694674,1755373853032,-2877.76,0.00020709,2]
[379694676,1755373853041,-780.02,0.00020709,2]
[379694678,1755373853050,-440.0,0.00020709,2]
[379694680,1755373853059,-1198.77,0.00020709,2]
[379694682,1755373853068,-480.0,0.00020709,2]
[379694684,1755373853078,-460.0,0.00020709,2]
[379694686,1755373853087,-933.44,0.00020709,2]
[379694688,1755373853096,-4037.94,0.00020709,2]
[379694690,1755373853106,-480.0,0.00020709,2]
[379694692,1755373853114,-440.0,0.00020709,2]
[379694694,1755373853123,-488.23,0.00020709,2]
[379694696,1755373853133,-737.78,0.0002071,2]
[379694698,1755373853142,-480.0,0.0002071,2]
[379694700,1755373853151,-610.92879495,0.0002071,2]
[379694702,1755373853161,-298.38356401,0.0002071,2]
[379694704,1755373853170,-480.0,0.0002071,2]
[379694706,1755373853179,-480.0,0.0002071,2]
[379694708,1755373853189,-480.0,0.0002071,2]
[379694710,1755373853198,-1249.76,0.0002071,2]
[379694712,1755373853207,-2264.36,0.0002071,2]
[379694714,1755373853216,-57.45965113,0.0002071,2]
[379694755,1755373853618,-480.0,0.00020162,2]
[379694757,1755373853628,-399.64000612,0.00020262,2]
[379694791,1755373853960,-480.0,0.0002016,2]
[379694793,1755373853971,-5.68698548,0.00020262,2]
[379694795,1755373853981,-13594.96,0.00020263,2]
[379694797,1755373853991,-480.0,0.00020434,2]
[379694799,1755373854001,-480.0,0.00020436,2]
[379694801,1755373854011,-13594.96,0.00020537,2]
[379694803,1755373854021,-234.82,0.00020708,2]
[379694805,1755373854031,-1129.08034887,0.0002071,2]
[379694807,1755373854040,-480.0,0.0002071,2]
[379694809,1755373854050,-480.0,0.0002071,2]
[379694811,1755373854060,-480.0,0.0002071,2]
[379694813,1755373854069,-480.0,0.0002071,2]
[379694815,1755373854079,-704.56,0.0002071,2]
[379694817,1755373854088,-1430.04,0.0002071,2]
[379694819,1755373854098,-1082.0,0.0002071,2]
[379694821,1755373854108,-440.0,0.0002071,2]
[379694823,1755373854117,-420.0,0.0002071,2]
[379694825,1755373854127,-480.0,0.0002071,2]
[379694828,1755373854136,-878.28,0.0002071,2]
[379694830,1755373854146,-1446.21,0.0002071,2]
[379694832,1755373854155,-1577.48,0.0002071,2]
[379694834,1755373854165,-480.0,0.0002071,2]
[379694836,1755373854176,-480.0,0.0002071,2]
[379694838,1755373854192,-496.72,0.0002071,2]
[379694840,1755373854202,-1477.4,0.0002071,2]
[379694842,1755373854212,-1014.41,0.0002071,2]
[379694844,1755373854222,-460.0,0.0002071,2]
[379694846,1755373854231,-480.0,0.0002071,2]
[379694848,1755373854241,-1319.62,0.0002071,2]
[379694850,1755373854250,-682.65,0.0002071,2]
[379694852,1755373854260,-553.85,0.0002071,2]
[379694854,1755373854270,-854.93,0.0002071,2]
[379694856,1755373854280,-12706.79,0.0002071,2]
[379694858,1755373854290,-480.0,0.0002071,2]
[379694860,1755373854300,-480.0,0.0002071,2]
[379694862,1755373854310,-1230.6,0.0002071,2]
[379694864,1755373854319,-1823.93,0.0002071,2]
[379694866,1755373854329,-204.24774284,0.0002071,2]
[379694869,1755373854339,-480.0,0.0002071,2]
[379694871,1755373854348,-480.0,0.0002071,2]
[379694873,1755373854359,-480.0,0.0002071,2]
[379694875,1755373854369,-1511.35,0.0002071,2]
[379694877,1755373854378,-480.0,0.0002071,2]
[379694879,1755373854388,-1050.7,0.0002071,2]
[379694881,1755373854397,-1293.59,0.0002071,2]
[379694883,1755373854406,-480.0,0.0002071,2]
[379694885,1755373854416,-480.0,0.0002071,2]
[379694887,1755373854426,-480.0,0.0002071,2]
[379694889,1755373854436,-935.03,0.0002071,2]
[379694891,1755373854446,-480.0,0.0002071,2]
[379694893,1755373854455,-547.43,0.0002071,2]
[379694895,1755373854465,-480.0,0.0002071,2]
[379694897,1755373854474,-480.0,0.0002071,2]
[379694899,1755373854485,-718.6,0.0002071,2]
[379694901,1755373854495,-480.0,0.0002071,2]
[379694903,1755373854505,-480.0,0.0002071,2]
[379694905,1755373854515,-727.76,0.0002071,2]
[379694907,1755373854524,-5019.37,0.0002071,2]
[379694909,1755373854534,-480.0,0.0002071,2]
[379694911,1755373854543,-3243.54,0.0002071,2]
[379694913,1755373854553,-497.8,0.0002071,2]
[379694915,1755373854562,-1150.57,0.0002071,2]
[379694917,1755373854572,-460.0,0.0002071,2]
[379694918,1755373854582,-480.0,0.0002071,2]
[379694919,1755373854591,-480.0,0.0002071,2]
[379694920,1755373854600,-480.0,0.0002071,2]
[379694921,1755373854609,-208.63492281,0.0002071,2]
[379694952,1755373855021,-480.0,0.00020161,2]
[379694954,1755373855031,-252.36944561,0.0002071,2]
[379694956,1755373855041,-153.0,0.00020712,2]
[379694958,1755373855051,-161.0,0.00020727,2]
[379694960,1755373855061,-159.38048776,0.00020727,2]
[379694962,1755373855071,-155.0,0.00020727,2]
[379694964,1755373855080,-155.0,0.00020727,2]
[379694966,1755373855091,-157.58234622,0.00020727,2]
[379694968,1755373855101,-326.0,0.00020727,2]
[379694971,1755373855111,-326.0,0.00020727,2]
[379694973,1755373855120,-326.0,0.00020727,2]
[379694975,1755373855130,-326.0,0.00020727,2]
[379694977,1755373855140,-326.0,0.00020727,2]
[379694979,1755373855150,-326.0,0.00020727,2]
[379694981,1755373855159,-326.0,0.00020727,2]
[379694983,1755373855170,-326.0,0.00020727,2]
[379694985,1755373855179,-326.0,0.00020727,2]
[379694987,1755373855189,-326.0,0.00020727,2]
[379694989,1755373855199,-326.0,0.00020727,2]
[379694991,1755373855208,-326.0,0.00020727,2]
[379694993,1755373855218,-326.0,0.00020727,2]
[379694995,1755373855227,-326.0,0.00020727,2]
[379694997,1755373855238,-326.0,0.00020727,2]
[379695013,1755373855380,-326.0,0.00020727,2]
[379695016,1755373855391,-326.0,0.00020727,2]
[379695017,1755373855400,-326.0,0.00020727,2]
[379695020,1755373855410,-326.0,0.00020727,2]
[379695022,1755373855421,-326.0,0.00020727,2]
[379695024,1755373855430,-326.0,0.00020727,2]
[379695026,1755373855440,-326.0,0.00020727,2]
[379695028,1755373855449,-326.0,0.00020727,2]
[379695030,1755373855458,-326.0,0.00020727,2]
[379695032,1755373855467,-326.0,0.00020727,2]
[379695034,1755373855477,-326.0,0.00020727,2]
[379695035,1755373855486,-326.0,0.00020727,2]
[379695037,1755373855495,-326.0,0.00020727,2]
[379695039,1755373855504,-326.0,0.00020727,2]
[379695041,1755373855513,-326.0,0.00020727,2]
[379695043,1755373855523,-326.0,0.00020727,2]
[379695045,1755373855532,-326.0,0.00020727,2]
[379695047,1755373855542,-326.0,0.00020727,2]
[379695049,1755373855551,-52.10624821,0.00020727,2]
[379695052,1755373855563,-273.89375179,0.00020727,2]
[379695054,1755373855572,-326.0,0.00020727,2]
[379695055,1755373855582,-326.0,0.00020727,2]
[379695057,1755373855591,-326.0,0.00020727,2]
[379695059,1755373855602,-326.0,0.00020727,2]
[379695061,1755373855611,-326.0,0.00020727,2]
[379695063,1755373855620,-326.0,0.00020727,2]
[379695065,1755373855629,-326.0,0.00020727,2]
[379695067,1755373855639,-326.0,0.00020727,2]
[379695069,1755373855648,-326.0,0.00020727,2]
[379695071,1755373855657,-326.0,0.00020727,2]
[379695073,1755373855667,-326.0,0.00020727,2]
[379695075,1755373855676,-326.0,0.00020727,2]
[379695077,1755373855685,-17.87080955,0.00020727,2]
[379696447,1755373889907,150.0,0.000189,2]
[379696448,1755373934934,-480.0,0.0002016,2]
[379696449,1755373934963,-480.0,0.0002016,2]
[379696450,1755373934990,-480.0,0.0002016,2]
[379696451,1755373935019,-300.0,0.0002016,2]
[379696452,1755373935046,-480.0,0.00020161,2]
[379696453,1755373935167,-263.85818915,0.00020161,2]
[379696454,1755373935207,-672.99181085,0.00020161,2]
[379696455,1755373935237,-480.0,0.00020161,2]
[379696456,1755373935265,-1154.67,0.00020161,2]
[379696457,1755373935324,-384.6763783,0.00020161,2]
[379696458,1755373935397,-2267.8736217,0.00020161,2]
[379696459,1755373935437,-464.2527566,0.00020161,2]
[379696460,1755373935878,-283.8172434,0.00020161,2]
[379696461,1755373935910,-717.7355132,0.00020161,2]
[379696462,1755373935980,-2003.1055132,0.00020161,2]
[379696463,1755373936051,-993.7889736,0.00020161,2]
[379696464,1755373936086,-1076.78,0.00020161,2]
[379696465,1755373936097,-480.0,0.00020161,2]
[379696466,1755373936108,-1103.1,0.00020161,2]
[379696467,1755373936118,-337.0144868,0.00020161,2]
[379696468,1755373936163,-320.4755132,0.00020161,2]
[379696469,1755373936191,-629.98745158,0.00020161,2]
[379696470,1755373936223,-561.86407044,0.00020161,2]
[379696471,1755373936299,-1975.34592956,0.00020161,2]
[379696472,1755373936333,-375.52707575,0.00020161,2]
[379696473,1755373936360,-442.88409147,0.00020161,2]
[379696474,1755373940073,3363.17766556,0.00020062,2]
[379696475,1755373940096,5000.0,0.00020062,2]
[379696476,1755373940120,5000.0,0.00020062,2]
[379696477,1755373940143,5000.0,0.00020062,2]
[379696478,1755373940165,5000.0,0.00020062,2]
[379696479,1755373940188,5000.0,0.00020062,2]
[379696480,1755373940212,5000.0,0.00020062,2]
[379696481,1755373940235,5000.0,0.00020062,2]
[379696482,1755373940256,5000.0,0.00020062,2]
[379696483,1755373940277,5000.0,0.00020062,2]
[379696484,1755373940301,5000.0,0.00020062,2]
[379696485,1755373940336,5000.0,0.00020062,2]
[379696486,1755373940358,5000.0,0.00020062,2]
[379696487,1755373940380,5000.0,0.00020062,2]
[379696488,1755373940407,63511.76646617,0.00020062,2]
[379696489,1755373954820,-480.0,0.0002016,2]
[379696490,1755373954848,-816.76,0.00020161,2]
[379696491,1755373954876,-818.15,0.00020161,2]
[379696492,1755373956924,770.18,0.00020161,2]
[379696493,1755373956946,3640.94,0.00020161,2]
[379696494,1755373961002,480.0,0.00020161,2]
[379696495,1755373962518,480.0,0.00020161,2]
[379696496,1755373963206,399.06,0.0002016,2]
[379696497,1755373963229,80.94,0.0002016,2]
[379696498,1755373965019,480.0,0.00020161,2]
[379696499,1755373967761,1093.54,0.0002016,2]
[379696500,1755373973154,480.0,0.00020161,2]
[379696501,1755373975400,391.77040873,0.00020161,2]
[379696502,1755373977263,480.0,0.00020161,2]
[379696503,1755373979133,1993.74959127,0.00020161,2]
[379696504,1755373979156,2233.57040873,0.00020161,2]
[379696505,1755373979883,480.0,0.00020161,2]
[379696506,1755373980191,482.41723097,0.00020161,2]
[379696507,1755373982450,480.0,0.00020161,2]
[379696508,1755373983875,300.0,0.00020161,2]
[379696509,1755373985081,1024.0123603,0.0002016,2]
[379696510,1755373985104,957.3076397,0.0002016,2]
[379696511,1755373985531,1157.71,0.00020161,2]
[379696512,1755373993534,1091.22,0.0002016,2]
[379696513,1755373995783,480.0,0.00020161,2]
[379696514,1755374002226,1313.7623603,0.00020161,2]
[379696515,1755374002367,97.8676397,0.00020161,2]
[379696516,1755374003970,480.0,0.00020161,2]
[379696517,1755374004615,480.0,0.00020161,2]
[379696518,1755374010136,480.0,0.00020161,2]
[379696519,1755374012046,480.0,0.00020161,2]
[379696520,1755374012321,1006.75,0.00020161,2]
[379696521,1755374018995,480.0,0.00020161,2]
[379696522,1755374019331,504.65,0.00020161,2]
[379696523,1755374019924,480.0,0.00020161,2]
[379696524,1755374020114,480.0,0.00020161,2]
[379696525,1755374022688,30.7323603,0.0002016,2]
[379696526,1755374022710,449.2676397,0.0002016,2]
[379696527,1755374023066,480.0,0.00020161,2]